fUSD/lending_fUSD_20240618
["ID","MTS","AMOUNT","RATE_DAILY","PERIOD"]
[329824092,1718706632481,-1302.71391373,0.00019899,2]
[329824093,1718706632491,-1302.71391373,0.00019899,2]
[329824094,1718706632502,-1302.71391373,0.000199,2]
[329824095,1718706632512,-174.49944535,0.000199,2]
[329824096,1718706632522,-13912.96654756,0.000199,2]
[329824097,1718706632532,-328.11515854,0.000199,2]
[329824098,1718706632542,-500.0,0.000199,2]
[329824099,1718706632552,-173.63595363,0.000199,2]
[329824100,1718706632561,-197.81765627,0.000199,2]
[329824101,1718706632571,-1302.71391373,0.000199,2]
[329824102,1718706632581,-1729.01332314,0.000199,2]
[329824103,1718706632593,-280.56667432,0.000199,2]
[329824107,1718706637649,-450.95372915,0.000199,2]
[329824111,1718706637662,-967.5007119,0.000199,2]
[329824132,1718706638193,-17663.58445965,0.000199,2]
[329824133,1718706638203,-413.92057913,0.00019968,2]
[329824134,1718706638215,-500.0,0.00019998,2]
[329824135,1718706638224,-1048.70450835,0.00019998,2]
[329824136,1718706638234,-162145.3522457,0.00019998,2]
[329824137,1718706638246,-490.1733676,0.00019998,2]
[329824138,1718706638259,-2348.40046312,0.00019998,2]
[329824139,1718706638272,-335.60407477,0.00019998,2]
[329824140,1718706638284,-1461.37030811,0.00019998,2]
[329824141,1718706638296,-405.8833334,0.00019998,2]
[329824142,1718706638308,-655.86,0.00019998,2]
[329824143,1718706638320,-6035.5597242,0.00019998,2]
[329824144,1718706638330,-155.42103422,0.00019998,2]
[329824146,1718706638340,-150000.0,0.00019998,2]
[329824149,1718706638349,-106228.98510907,0.00019998,2]
[329824152,1718706638360,-1082.61554,0.00019999,5]
[329824156,1718706638371,-330.48855441,0.00019999,2]
[329824159,1718706638381,-943667.57832468,0.0002,2]
[329824161,1718706638393,-2836.54204063,0.0002,2]
[329824167,1718706639962,-6790.39740626,0.0002,2]
[329824168,1718706640250,-2653.86282,0.0002,2]
[329824169,1718706640263,-737.7110978,0.0002,2]
[329824170,1718706640276,-2887.67808576,0.0002,2]
[329824171,1718706640522,-529089.01025981,0.0002,2]
[329824245,1718706643025,-3748.62620939,0.0002,2]
[329824248,1718706643038,-7391.13520192,0.0002,2]
[329824250,1718706643049,-4043.23692891,0.0002,2]
[329824252,1718706643062,-1061461.83132124,0.0002,2]
[329824254,1718706643074,-7195.992,0.0002,2]
[329824260,1718706643421,-8261.66,0.0002,2]
[329824263,1718706643433,-7713.53118949,0.0002,2]
[329824295,1718706646122,-1500.0,0.0002,2]
[329824296,1718706646138,-1383.12713095,0.0002,2]
[329824297,1718706646406,-368850.96416488,0.0002,2]
[329824298,1718706646479,-2381.7007742,0.0002,2]
[329824299,1718706646493,-167630.45449776,0.0002,2]
[329824300,1718706646504,-212208.50541232,0.0002,2]
[329824307,1718706871755,13750.11803924,6.94e-05,2]
[329824308,1718706872100,1481.03357536,0.0002,30]
[329824309,1718706996899,1850.81,0.00022,60]
[329824319,1718707499528,11946.78417735,0.00022,30]
[329824333,1718707680539,546.5,0.000214,30]
[329824334,1718707785700,500.0,0.000217,30]
[329824339,1718707834944,-442.71754,0.00011499,2]
[329824341,1718707834954,-155.0,0.00011556,2]
[329824343,1718707834964,-339.03963095,0.00011557,2]
[329824345,1718707834973,-150.0,0.00011798,2]
[329824347,1718707834982,-2735.09035846,0.00011799,2]
[329824350,1718707834993,-6690.0,0.00011799,2]
[329824353,1718707835004,-295.579418,0.00011799,2]
[329824354,1718707835014,-12315.561342,0.000118,2]
[329824355,1718707835026,-20487.992381,0.000118,2]
[329824356,1718707835035,-210.0,0.00012978,2]
[329824357,1718707835045,-504.0,0.00013365,2]
[329824358,1718707835054,-6926.8459,0.000139,2]
[329824359,1718707835063,-362.02460038,0.000139,2]
[329824360,1718707835072,-713.79285178,0.000139,2]
[329824361,1718707835081,-155.02474558,0.00013998,2]
[329824362,1718707835091,-1249.56334718,0.00013999,2]
[329824363,1718707835100,-499.99,0.00013999,2]
[329824364,1718707835109,-1569.36,0.00013999,2]
[329824365,1718707835118,-42811.50189864,0.00014,2]
[329824366,1718707835130,-1201.34553381,0.00014,2]
[329824369,1718707838198,-1672.63787182,0.00014,2]
[329824371,1718707838210,-230459.73458079,0.00014,2]
[329824373,1718707838222,-858.74623956,0.00014,2]
[329824375,1718707838234,-1987.44088235,0.00014,2]
[329824377,1718707838245,-1970.79,0.00014,2]
[329824378,1718707838258,-59233.58542762,0.00014,2]
[329824379,1718707838270,-37540.75734402,0.00014,2]
[329824531,1718707841076,-2203.4,0.00014,2]
[329824557,1718707844398,-1267.53629767,0.00014,2]
[329824558,1718707844410,-1544.23867723,0.00014,2]
[329824559,1718707844422,-2647.43610289,0.00014,2]
[329824560,1718707844434,-298.72,0.00014,2]
[329824561,1718707844446,-2157.74935091,0.00014,2]
[329824562,1718707844458,-2999.27588856,0.00014,2]
[329824563,1718707844471,-11212.65632614,0.00014,2]
[329824564,1718707844482,-500.0,0.00014,2]
[329824572,1718707846224,-7320.14118167,0.00014,2]
[329824573,1718707846237,-723.96749468,0.00014,2]
[329824574,1718707846579,-1795.36741921,0.00014,2]
[329824575,1718707846593,-21888.96346288,0.00014,2]
[329824576,1718707846605,-6277.52029389,0.00014,2]
[329824577,1718707846616,-1611.69,0.00014,2]
[329824578,1718707846628,-31651.59085774,0.00014,2]
[329824579,1718707846640,-6466.8461794,0.00014,2]
[329824580,1718707846652,-360.08234564,0.00014,2]
[329824581,1718707846665,-9752.56876707,0.00014,2]
[329824582,1718707846678,-3219.5463672,0.00014,2]
[329824584,1718707846843,-1604.0647606,0.00014,2]
[329824604,1718708480213,-567.6364824,0.00012383,2]
[329824605,1718708480236,-519.57002477,0.00012383,2]
[329824606,1718708480259,-1250.82585275,0.00012384,2]
[329824607,1718708480285,-500.27,0.00012386,2]
[329824608,1718708480310,-300.0,0.00013501,2]
[329824609,1718708480332,-7592.43,0.00013502,2]
[329824610,1718708480354,-250.0,0.00013693,2]
[329824611,1718708480376,-23900.0,0.00013695,2]
[329824612,1718708480396,-2620.27,0.00013699,2]
[329824613,1718708480418,-150.0,0.00013899,2]
[329824614,1718708480439,-150.0,0.00013899,2]
[329824615,1718708480460,-624.56874529,0.000139,2]
[329824616,1718708480482,-178.44821296,0.000139,2]
[329824617,1718708480743,-1000.0,0.000139,2]
[329824618,1718708480768,-6095.61367237,0.000139,2]
[329824619,1718708480791,-108769.3034,0.000139,2]
[329824620,1718708480820,-245.89794234,0.000139,2]
[329824621,1718708480841,-6353.3694,0.000139,2]
[329824622,1718708480862,-2499.9999,0.000139,2]
[329824623,1718708480885,-30115.2148,0.000139,2]
[329824624,1718708480906,-4121.98946157,0.00013985,2]
[329824625,1718708480928,-1042.96508975,0.0001399,2]
[329824626,1718708480950,-1042.96508975,0.0001399,2]
[329824627,1718708480979,-886.64940994,0.00013998,2]
[329824628,1718708481000,-156.39658375,0.00013998,2]
[329824629,1718708481022,-541.54407872,0.00013998,2]
[329824630,1718708481044,-410.0140434,0.00013998,2]
[329824631,1718708481065,-3983.20822826,0.00013998,2]
[329824632,1718708481086,-197.303,0.00013998,2]
[329824633,1718708481107,-161.18010222,0.00013998,2]
[329824634,1718708481129,-155.0,0.00013998,2]
[329824635,1718708481151,-788.76144666,0.00013998,2]
[329824636,1718708481174,-450.95924719,0.00013998,2]
[329824637,1718708481199,-2195.01899183,0.00013998,2]
[329824638,1718708481226,-334.35218342,0.00013998,2]
[329824639,1718708481247,-217.40040456,0.00013998,2]
[329824640,1718708481269,-155.20249672,0.00013998,2]
[329824641,1718708481289,-155.0,0.00013998,2]
[329824642,1718708481310,-536.03816007,0.00013998,2]
[329824643,1718708481334,-155.37474441,0.00013999,2]
[329824644,1718708481355,-1025.59553728,0.00013999,2]
[329824645,1718708481380,-387603.66326762,0.00014,2]
[329824652,1718709009377,150.0,0.00013999,7]
[329824656,1718709032431,-536.91461937,0.00011272,2]
[329824657,1718709032442,-449.6773305,0.00011273,2]
[329824658,1718709032452,-500.45,0.00011275,2]
[329824659,1718709032462,-1327.9217517,0.00012382,2]
[329824660,1718709032473,-267.07246968,0.00013046,2]
[329824661,1718709032486,-32.92753032,0.00013046,2]
[329824662,1718709032496,-436.09653234,0.00013047,2]
[329824663,1718709032509,-23463.90346766,0.00013047,2]
[329824664,1718709032519,-250.0,0.00013077,2]
[329824665,1718709032530,-819.19,0.00013077,2]
[329824666,1718709032542,-1755.54,0.00013227,2]
[329824667,1718709032552,-500.0,0.00013266,2]
[329824668,1718709032563,-250.0,0.00013294,2]
[329824669,1718709032572,-155.02,0.00013306,2]
[329824670,1718709032582,-150.0,0.0001332,2]
[329824671,1718709032592,-150.0,0.0001332,2]
[329824672,1718709032604,-664.25,0.0001332,2]
[329824673,1718709032614,-2707.53,0.00013321,2]
[329824674,1718709032624,-168.64,0.00013334,2]
[329824675,1718709032635,-500.45,0.00013539,2]
[329824676,1718709032646,-184.03,0.00013699,2]
[329824677,1718709032658,-2751.0,0.00013699,2]
[329824678,1718709032669,-945.0,0.00013699,2]
[329824679,1718709032680,-358.92,0.00013784,2]
[329824680,1718709032689,-427.18912393,0.00013798,2]
[329824681,1718709032699,-211.8811,0.000138,2]
[329824682,1718709032708,-406.95,0.00013821,2]
[329824683,1718709032720,-829.38072415,0.000139,2]
[329824684,1718709032730,-165.24429124,0.000139,2]
[329824685,1718709032740,-1000.0,0.000139,2]
[329824686,1718709032750,-613.41573199,0.000139,2]
[329824687,1718709032759,-163.93196156,0.000139,2]
[329824688,1718709032769,-335.27390289,0.000139,2]
[329824689,1718709032778,-4147.9069757,0.00013989,2]
[329824690,1718709032788,-2388.5819942,0.00013989,2]
[329824691,1718709032798,-2348.8982865,0.00013989,2]
[329824692,1718709032807,-907.01622304,0.00013998,2]
[329824693,1718709032817,-155.23263121,0.00013998,2]
[329824694,1718709032827,-1277.45304415,0.00013998,2]
[329824695,1718709032837,-507.0777849,0.00013998,2]
[329824696,1718709032847,-155.0,0.00013998,2]
[329824697,1718709032858,-155.0,0.00013998,2]
[329824698,1718709032867,-285.06194114,0.00013998,2]
[329824699,1718709032878,-273.90596587,0.00013998,2]
[329824700,1718709032890,-421.6240925,0.00013998,2]
[329824701,1718709032903,-193.24307856,0.00013998,2]
[329824702,1718709032913,-281.35964641,0.00013998,2]
[329824703,1718709032923,-1256.99639476,0.00013998,2]
[329824704,1718709032934,-253.72066577,0.00013999,2]
[329824705,1718709032944,-157.89758845,0.00013999,2]
[329824706,1718709032954,-3066.55001275,0.00013999,2]
[329824707,1718709032964,-166.799397,0.00013999,2]
[329824708,1718709032974,-545.75067402,0.00013999,2]
[329824709,1718709032984,-2823.25950554,0.00013999,2]
[329824710,1718709032994,-150.0,0.00013999,2]
[329824711,1718709033003,-336837.37873127,0.00014,2]
[329824712,1718709033016,-1750.0,0.00014,2]
[329824713,1718709033028,-6614.08776327,0.00014,2]
[329824714,1718709033040,-998.5940654,0.00014,2]
[329824715,1718709033052,-7260.12434325,0.00014,2]
[329824716,1718709033108,-10013.34882293,0.00014,2]
[329824717,1718709033120,-5854.9058077,0.00014,2]
[329824718,1718709033131,-55002.10334356,0.00014,2]
[329824719,1718709033143,-3400.3900154,0.00014,2]
[329824725,1718709038442,-1569.36,0.00013294,2]
[329824726,1718709038453,-5104.55827701,0.00014,2]
[329824727,1718709038465,-2265.82411824,0.00014,2]
[329824728,1718709038477,-7171.6972,0.00014,2]
[329824729,1718709038489,-511281.75518049,0.00014,2]
[329824730,1718709038501,-5555.65545771,0.00014,2]
[329824731,1718709038513,-6662.9,0.00014,2]
[329824732,1718709038526,-2120.95085161,0.00014,2]
[329824733,1718709038538,-3180.7408274,0.00014,2]
[329824734,1718709038549,-592.60230185,0.00014,2]
[329824735,1718709038561,-568.30506277,0.00014,2]
[329824736,1718709038573,-2123.93814826,0.00014,2]
[329824737,1718709038585,-653.67901261,0.00014,2]
[329824738,1718709038596,-250.88068151,0.00014,2]
[329824739,1718709038608,-32162.41963906,0.00014,2]
[329824740,1718709038843,-3735.53908701,0.00014,2]
[329824742,1718709038856,-5649.53764994,0.00014,2]
[329824750,1718709040472,-996.53595051,0.000139,2]
[329824751,1718709040483,-19015.84151247,0.00014,2]
[329824752,1718709040795,-6933.01282375,0.00014,2]
[329824753,1718709040807,-345.49999998,0.00014,2]
[329824754,1718709040819,-547.1103467,0.00014,2]
[329824755,1718709040830,-322.65736173,0.00014,2]
[329824756,1718709040842,-678.19636856,0.00014,2]
[329824757,1718709040855,-3982.6566,0.00014,2]
[329824758,1718709040867,-2307.10155643,0.00014,2]
[329824759,1718709040879,-1129.10829927,0.00014,2]
[329824760,1718709040893,-3132.62260289,0.00014,2]
[329824761,1718709040914,-411.89588285,0.00014,2]
[329824762,1718709040926,-880.188012,0.00014,2]
[329824763,1718709040940,-512.0,0.00014,2]
[329824764,1718709040953,-317813.32879973,0.00014,2]
[329824765,1718709040965,-4737.26219031,0.00014,2]
[329824766,1718709040980,-2467.95071058,0.00014,2]
[329824767,1718709040992,-9993.39194203,0.00014,2]
[329824768,1718709041004,-1054.19148383,0.00014,2]
[329824769,1718709041017,-807.664508,0.00014,2]
[329824770,1718709041126,-6387.72261102,0.00014,2]
[329824771,1718709041137,-593.67599803,0.00014,2]
[329824772,1718709041149,-1034.268095,0.00014,2]
[329824773,1718709041161,-462167.1317173,0.00014,2]
[329824774,1718709041439,-910072.92003019,0.00014,2]
[329824775,1718709041460,-470.89476816,0.00014,2]
[329824789,1718709043545,-2783.34432458,0.00014,2]
[329824790,1718709043556,-5060.05067975,0.00014,2]
[329824791,1718709043568,-111311.97535582,0.00014,2]
[329824792,1718709043948,-94021.31846418,0.00014,2]
[329824793,1718709043963,-108370.42834926,0.00014,2]
[329824794,1718709043976,-1466.79589,0.00014,2]
[329824795,1718709043989,-13719.95340382,0.00014,2]
[329824796,1718709044000,-1868.97347,0.00014,2]
[329824797,1718709044156,-22568.93764906,0.00014,2]
[329824800,1718709044169,-1358.52,0.00014,2]
[329824803,1718709044181,-373.5132,0.00014,2]
[329824809,1718709046726,-354.99100247,0.00013999,2]
[329824810,1718709046736,-10965.43298073,0.00013999,2]
[329824811,1718709046748,-1154.23814551,0.00013999,2]
[329824812,1718709046759,-1328.225,0.00013999,2]
[329824837,1718709972695,7105.04435815,0.0002,30]
[329824851,1718710232617,-1798.08630469,0.00011131,2]
[329824854,1718710232627,-659.87577635,0.00011132,2]
[329824857,1718710232641,-536.91461937,0.00011133,2]
[329824859,1718710232651,-408.66568447,0.00011133,2]
[329824860,1718710232661,-238.28020469,0.00011134,2]
[329824861,1718710232671,-2001.83778481,0.00011136,2]
[329824862,1718710232681,-479.75,0.00011172,2]
[329824863,1718710232691,-338.76,0.00012412,2]
[329824864,1718710232702,-283.98,0.00012428,2]
[329824865,1718710232712,-300.0,0.00012455,2]
[329824866,1718710232722,-150.0,0.00012455,2]
[329824867,1718710232732,-3710.38,0.00012457,2]
[329824868,1718710232743,-250.0,0.00012475,2]
[329824869,1718710232755,-3029.18,0.00012475,2]
[329824870,1718710232764,-775.8,0.00012475,2]
[329824871,1718710232774,-250.0,0.00012492,2]
[329824872,1718710232785,-2852.3,0.00012492,2]
[329824873,1718710232795,-1222.0,0.00012542,2]
[329824874,1718710232805,-155.0,0.00012597,2]
[329824875,1718710232815,-152.68,0.0001261,2]
[329824876,1718710232825,-499.99,0.0001261,2]
[329824877,1718710232838,-321.67,0.0001261,2]
[329824878,1718710232848,-1405.8,0.0001261,2]
[329824879,1718710232858,-661.24,0.00012687,2]
[329824880,1718710232867,-23900.0,0.00012736,2]
[329824881,1718710232877,-659.16,0.00012789,2]
[329824882,1718710232886,-170.23,0.00012941,2]
[329824883,1718710232895,-170.23,0.00012974,2]
[329824884,1718710232906,-5075.11,0.00012994,2]
[329824885,1718710232916,-170.23,0.00013006,2]
[329824886,1718710232926,-299.99,0.00013006,2]
[329824887,1718710232937,-168.7,0.000133,2]
[329824888,1718710232947,-2744.14,0.00013425,2]
[329824889,1718710232957,-479.75,0.00013436,2]
[329824890,1718710232968,-420.0,0.00013667,2]
[329824891,1718710232979,-575.43,0.00013699,2]
[329824892,1718710232989,-871.92,0.00013699,2]
[329824893,1718710232999,-210.0,0.000137,2]
[329824894,1718710233010,-259.34,0.00013758,2]
[329824895,1718710233020,-242.23622098,0.00013774,2]
[329824896,1718710233031,-4156.8072,0.000138,2]
[329824897,1718710233040,-1000.0,0.00013899,2]
[329824898,1718710233051,-1000.0,0.000139,2]
[329824899,1718710233061,-7364.12299405,0.000139,2]
[329824900,1718710233071,-165.24429124,0.000139,2]
[329824901,1718710233084,-673.51210673,0.000139,2]
[329824902,1718710233093,-273.21993594,0.000139,2]
[329824905,1718710233103,-154.98560786,0.000139,2]
[329824907,1718710233112,-332.85086544,0.000139,2]
[329824909,1718710233122,-330.121938,0.000139,2]
[329824910,1718710233132,-215.68,0.00013961,2]
[329824911,1718710233142,-338.76,0.00013963,2]
[329824912,1718710233158,-169.96635,0.00013989,2]
[329824913,1718710233168,-4168.2842163,0.00013989,2]
[329824914,1718710233178,-2105.7064746,0.00013989,2]
[329824915,1718710233188,-1541.0427333,0.00013989,2]
[329824916,1718710233199,-915.49415804,0.0001399,2]
[329824917,1718710233209,-915.49415804,0.0001399,2]
[329824918,1718710233219,-3010.53119973,0.00013997,2]
[329824919,1718710233229,-625.28915843,0.00013997,2]
[329824920,1718710233240,-494.05371952,0.00013997,2]
[329824921,1718710233250,-858.78040361,0.00013997,2]
[329824922,1718710233261,-9452.46521274,0.00013997,2]
[329824923,1718710233272,-1218.89370837,0.00013997,2]
[329824924,1718710233283,-1250.65157348,0.00013997,2]
[329824925,1718710234190,-1120.61397666,0.00013997,2]
[329824926,1718710234200,-1510.12584397,0.00013997,2]
[329824927,1718710234210,-1000.0,0.00013997,2]
[329824928,1718710234221,-687.25630943,0.00013997,2]
[329824929,1718710234231,-282.95218659,0.00013997,2]
[329824930,1718710234241,-156.9132,0.00013997,2]
[329824931,1718710234251,-792.11091625,0.00013997,2]
[329824932,1718710234261,-196.39936941,0.00013997,2]
[329824933,1718710234272,-2781.37514046,0.00013998,2]
[329824934,1718710234282,-105189.58758062,0.00013999,2]
[329824935,1718710234299,-600.0,0.00013999,2]
[329824936,1718710234311,-1000.0,0.00013999,2]
[329824937,1718710234608,-299.99,0.00013999,2]
[329824938,1718710234619,-2159.97449723,0.00013999,2]
[329824939,1718710234631,-75490.09572456,0.00013999,2]
[329824940,1718710234643,-2009.39774727,0.00013999,2]
[329824941,1718710234654,-364.7,0.00013999,2]
[329824942,1718710234666,-697.11121979,0.00013999,2]
[329824943,1718710234678,-752.48581428,0.00013999,2]
[329824945,1718710238713,-20513.53265384,0.00013999,2]
[329824947,1718710238726,-3337.161,0.00013999,2]
[329824950,1718710238738,-45719.13836054,0.00013999,2]
[329824971,1718710239149,-28595.34813619,0.00013999,2]
[329824972,1718710239162,-30661.59706,0.00013999,2]
[329824973,1718710239175,-33017.57440624,0.00013999,2]
[329824974,1718710239187,-40188.70718728,0.00013999,2]
[329824975,1718710239200,-835.77,0.00013999,2]
[329824976,1718710239213,-930.39941226,0.00013999,2]
[329824977,1718710239226,-566.34980186,0.00013999,2]
[329824978,1718710239238,-6000.0,0.00013999,2]
[329824979,1718710239251,-255491.35051572,0.00013999,2]
[329824987,1718710241215,-525.73608221,0.00013999,2]
[329824988,1718710241228,-2674.80914145,0.00013999,2]
[329824989,1718710241240,-974495.39075962,0.00013999,2]
[329824990,1718710241251,-262963.12194301,0.00014,2]
[329824991,1718710241262,-549855.13807452,0.00014,2]
[329824992,1718710241624,-282.99193758,0.00014,2]
[329825054,1718710244054,-347.415,0.00014,2]
[329825055,1718710244066,-725.46039347,0.00014,2]
[329825056,1718710244079,-6673.29685439,0.00014,2]
[329825057,1718710245294,-14110.59351118,0.00014,2]
[329825058,1718710245309,-4572.20407358,0.00014,2]
[329825059,1718710245323,-3189.85102162,0.00014,2]
[329825060,1718710245335,-7036.87300454,0.00014,2]
[329825061,1718710245351,-2983.2103724,0.00014,2]
[329825062,1718710245363,-1308.10598982,0.00014,2]
[329825063,1718710245374,-575775.24778942,0.00014,2]
[329825064,1718710245387,-2964.8717329,0.00014,2]
[329825065,1718710245399,-2765.68449013,0.00014,2]
[329825066,1718710245412,-5958.007393,0.00014,2]
[329825117,1718710247166,-274.68725396,0.00013999,2]
[329825118,1718710247241,-403.33400052,0.00013999,2]
[329825119,1718710247252,-528989.40127765,0.00014,2]
[329825120,1718710247263,-827.25071467,0.00014,2]
[329825121,1718710247275,-232355.87185292,0.00014,2]
[329825122,1718710247286,-228.73243057,0.00014,2]
[329825123,1718710247297,-155.0,0.00014,2]
[329825124,1718710247308,-152.0,0.00014,2]
[329825125,1718710247323,-3000.0,0.00014,2]
[329825126,1718710247333,-661.24,0.00014273,2]
[329825127,1718710247347,-7364.12299403,0.00014445,2]
[329825128,1718710247359,-259.34,0.00014446,2]
[329825129,1718710247370,-673.51210667,0.00014757,2]
[329825130,1718710247381,-7364.12299403,0.00014991,2]
[329825131,1718710247393,-587.0,0.00014996,2]
[329825132,1718710247403,-257829.448945,0.00015,2]
[329825133,1718710247414,-3962.58127052,0.00015,2]
[329825134,1718710247424,-259.34,0.00015134,2]
[329825135,1718710247434,-3710.38,0.00015197,2]
[329825136,1718710247445,-358.92,0.00015508,2]
[329825137,1718710247455,-338.76,0.00015515,2]
[329825138,1718710247465,-2594.03278755,0.00015536,2]
[329825139,1718710247478,-4770.09020648,0.00015536,2]
[329825140,1718710247488,-673.51210667,0.00015614,2]
[329825141,1718710247498,-479.75,0.000157,2]
[329825142,1718710247509,-259.34,0.00015821,2]
[329825143,1718710247519,-661.24,0.00015859,2]
[329825144,1718710247529,-105.79475671,0.00015998,2]
[329825145,1718710247832,-54.67038188,0.00015998,2]
[329825146,1718710247844,-152.0,0.00016,2]
[329825147,1718710247855,-7364.12299403,0.00016082,2]
[329825148,1718710247865,-673.51210667,0.00016471,2]
[329825149,1718710247875,-259.34,0.00016509,2]
[329825150,1718710247885,-500.0,0.00016583,2]
[329825151,1718710247896,-7364.12299403,0.00016627,2]
[329825152,1718710247907,-273.21993593,0.000169,2]
[329825153,1718710247917,-338.76,0.00017066,2]
[329825154,1718710247927,-417.93,0.00017138,2]
[329825155,1718710247938,-852.19,0.00017138,2]
[329825156,1718710247948,-418.09,0.00017138,2]
[329825157,1718710247959,-852.19,0.00017138,2]
[329825158,1718710247970,-418.09,0.00017138,2]
[329825159,1718710247980,-852.19,0.00017138,2]
[329825160,1718710247991,-418.09,0.00017138,2]
[329825161,1718710248002,-852.19,0.00017138,2]
[329825162,1718710248013,-415.6,0.00017138,2]
[329825163,1718710248025,-852.19,0.00017138,2]
[329825164,1718710248035,-1047.06,0.00017138,2]
[329825165,1718710248045,-7364.12299403,0.00017173,2]
[329825166,1718710248056,-358.92,0.00017231,2]
[329825167,1718710248066,-673.51210667,0.00017329,2]
[329825168,1718710248076,-661.24,0.00017445,2]
[329825169,1718710248087,-1000.0,0.000176,2]
[329825170,1718710248101,-500.0,0.00017679,2]
[329825171,1718710248111,-7364.12299403,0.00017718,2]
[329825172,1718710248122,-785.0,0.000179,2]
[329825173,1718710248132,-3710.38,0.00017936,2]
[329825174,1718710248143,-479.75,0.00017964,2]
[329825175,1718710248154,-152.0,0.00018,2]
[329825176,1718710248165,-300.0,0.00018084,2]
[329825177,1718710248175,-423.19,0.00018084,2]
[329825178,1718710248186,-673.51210667,0.00018186,2]
[329825179,1718710248196,-500.0,0.00018227,2]
[329825180,1718710248207,-7364.12299403,0.00018264,2]
[329825181,1718710248217,-574.0,0.000183,2]
[329825182,1718710248227,-2182.0,0.000183,2]
[329825183,1718710248237,-1072.79226688,0.00018565,2]
[329825184,1718710248248,-338.76,0.00018618,2]
[329825185,1718710248258,-500.0,0.00018775,2]
[329825186,1718710248268,-500.0,0.00018775,2]
[329825187,1718710248278,-7364.12299403,0.00018809,2]
[329825188,1718710248289,-152.68,0.00018915,2]
[329825189,1718710248304,-358.92,0.00018954,2]
[329825190,1718710248314,-762.03128154,0.00019,4]
[329825191,1718710248325,-3000.0,0.00019,2]
[329825192,1718710248336,-661.24,0.00019031,2]
[329825193,1718710248352,-673.51210667,0.00019043,2]
[329825194,1718710248362,-151.0,0.00019133,2]
[329825195,1718710248372,-413.93655301,0.00019178,2]
[329825196,1718710248383,-500.0,0.00019178,2]
[329825197,1718710248393,-500.0,0.00019178,2]
[329825198,1718710248404,-500.0,0.00019178,2]
[329825199,1718710248415,-500.0,0.00019178,2]
[329825200,1718710248425,-500.0,0.00019178,2]
[329825201,1718710248435,-500.0,0.00019178,2]
[329825202,1718710248446,-500.0,0.00019178,2]
[329825203,1718710248458,-500.0,0.00019178,2]
[329825204,1718710248468,-500.0,0.00019178,2]
[329825205,1718710248480,-500.0,0.00019178,2]
[329825206,1718710248490,-500.0,0.00019178,2]
[329825207,1718710248501,-500.0,0.00019178,2]
[329825208,1718710248511,-500.0,0.00019178,2]
[329825209,1718710248521,-500.0,0.00019178,2]
[329825210,1718710248531,-500.0,0.00019178,2]
[329825211,1718710248542,-500.0,0.00019178,2]
[329825212,1718710248552,-500.0,0.00019178,2]
[329825213,1718710248562,-500.0,0.00019178,2]
[329825214,1718710248572,-500.0,0.00019178,2]
[329825215,1718710248583,-351.64720317,0.00019178,2]
[329825216,1718710248594,-500.0,0.00019178,2]
[329825217,1718710248604,-500.0,0.00019178,2]
[329825218,1718710248615,-500.0,0.00019178,2]
[329825219,1718710248624,-499.99999999,0.00019178,2]
[329825220,1718710248635,-871.92,0.00019178,2]
[329825221,1718710248645,-500.0,0.00019323,2]
[329825222,1718710248655,-7364.12299403,0.00019355,2]
[329825223,1718710248665,-151.0,0.00019534,2]
[329825224,1718710248675,-314.0,0.0001956,15]
[329825225,1718710248685,-314.0,0.0001957,15]
[329825226,1718710248696,-151.87,0.0001958,15]
[329825227,1718710248707,-314.0,0.0001958,15]
[329825228,1718710248717,-150.5,0.00019587,15]
[329825229,1718710248728,-900.0,0.00019597,2]
[329825230,1718710248738,-1400.0,0.00019597,2]